bitfinex-derivatives/quotes_BNBF0:USTF0_20251203
["timestamp","ask_amount","ask_price","bid_price","bid_amount"]
[1764759142341,0.19370568,898.68,898.13,0.71136404]
[1764759142540,0.19370568,898.68,898.14,0.71136404]
[1764759142737,0.19370568,898.68,898.12,1.135]
[1764759142936,0.19370568,898.68,898.13,0.71133309]
[1764759143137,0.19370568,898.68,898.14,0.71133309]
[1764759143340,0.19370568,898.68,898.12,1.135]
[1764759143541,0.19370568,898.68,898.13,0.71133434]
[1764759143738,0.19370568,898.68,898.12,1.135]
[1764759143739,0.19370568,898.68,898.14,0.71133434]
[1764759144041,0.19370568,898.68,898.12,1.135]
[1764759144241,0.19370568,898.68,898.13,0.71133434]
[1764759144438,0.19370568,898.68,898.14,0.71133434]
[1764759144740,0.19370568,898.68,898.12,1.135]
[1764759144937,0.19370568,898.68,898.13,0.71133622]
[1764759145237,0.19370568,898.68,898.14,0.71133622]
[1764759145443,0.19370568,898.68,898.12,1.135]
[1764759145642,0.19370568,898.68,898.13,0.71133961]
[1764759145839,0.19370568,898.68,898.14,0.71133961]
[1764759146038,0.19370568,898.68,898.12,1.135]
[1764759146240,0.19370568,898.68,898.13,0.71134]
[1764759146443,0.19370568,898.68,898.14,0.71134]
[1764759146744,0.19370568,898.68,898.12,1.135]
[1764759146942,0.19370568,898.68,898.13,0.70834203]
[1764759147142,0.19370568,898.68,898.14,0.70834203]
[1764759147342,0.19370568,898.68,898.12,1.135]
[1764759147542,0.19370568,898.68,898.13,0.70833932]
[1764759147841,0.19370568,898.68,898.14,0.70833932]
[1764759148041,0.19370568,898.68,898.12,1.135]
[1764759148241,0.19370568,898.68,898.13,0.70833932]
[1764759148440,0.19370568,898.68,898.14,0.70833932]
[1764759148739,0.19370568,898.68,898.12,1.135]
[1764759148942,0.19370568,898.68,898.13,0.70832977]
[1764759149137,0.19370568,898.68,898.14,0.70832977]
[1764759149339,0.19370568,898.68,898.12,1.135]
[1764759149544,0.19370568,898.68,898.13,0.7083232]
[1764759149744,0.19370568,898.68,898.14,0.7083232]
[1764759150042,0.19370568,898.68,898.12,1.135]
[1764759150243,0.19370568,898.68,898.13,0.7083232]
[1764759150444,0.19370568,898.68,898.14,0.7083232]
[1764759150641,0.19370568,898.68,898.12,1.135]
[1764759150940,0.19370568,898.68,898.13,0.7083232]
[1764759151143,0.19370568,898.68,898.14,0.7083232]
[1764759151341,0.19370568,898.68,898.12,1.135]
[1764759151541,0.19370568,898.68,898.13,0.70832196]
[1764759151739,0.19370568,898.68,898.14,0.70832196]
[1764759151940,0.19370568,898.68,898.12,1.135]
[1764759152140,0.19370568,898.68,898.13,0.70832189]
[1764759152343,0.19370568,898.68,898.14,0.70832189]
[1764759152545,0.19370568,898.68,898.12,1.135]
[1764759152743,0.19370568,898.68,898.13,0.70832189]
[1764759152944,0.19370568,898.68,898.14,0.70832189]
[1764759153141,0.19370568,898.68,898.12,1.135]
[1764759153347,0.19370568,898.68,898.13,0.70832189]
[1764759153646,0.19370568,898.68,898.14,0.70832189]
[1764759153843,0.19370568,898.68,898.12,1.135]
[1764759154145,0.19370568,898.68,898.14,1.022]
[1764759156448,0.19370568,898.68,898.15,0.708291]
[1764759156644,0.19370568,898.68,898.14,1.022]
[1764759163759,0.19370568,898.68,898.15,0.70832396]
[1764759163956,0.19370568,898.68,898.16,0.70832396]
[1764759164158,0.19370568,898.68,898.17,0.70832396]
[1764759164355,0.19370568,898.68,898.18,0.70832396]
[1764759164560,0.19370568,898.68,898.14,1.022]
[1764759164761,0.19370568,898.68,898.15,0.70834316]
[1764759164961,0.19370568,898.68,898.16,0.70834316]
[1764759165256,0.19370568,898.68,898.17,0.70834316]
[1764759165460,0.19370568,898.68,898.18,0.70834316]
[1764759165660,0.19370568,898.68,898.14,1.022]
[1764759165858,0.19370568,898.68,898.15,0.70834488]
[1764759166056,0.19370568,898.68,898.16,0.70834488]
[1764759166260,0.19370568,898.68,898.17,0.70834488]
[1764759166557,0.19370568,898.68,898.18,0.70834488]
[1764759166760,0.19370568,898.68,898.14,1.022]
[1764759167059,0.19370568,898.68,898.15,0.70834931]
[1764759167256,0.19370568,898.68,898.16,0.70834931]
[1764759167558,0.19370568,898.68,898.17,0.70834931]
[1764759167760,0.19370568,898.68,898.18,0.70834931]
[1764759167961,0.19370568,898.68,898.14,1.022]
[1764759168167,0.19370568,898.68,898.15,0.70837489]
[1764759168466,0.19370568,898.68,898.16,0.70837489]
[1764759168661,0.19370568,898.68,898.17,0.70837489]
[1764759168865,0.19370568,898.68,898.18,0.70837489]
[1764759169166,0.19370568,898.68,898.14,1.022]
[1764759169365,0.19370568,898.68,898.15,0.70841256]
[1764759169563,0.19370568,898.68,898.16,0.70841256]
[1764759169766,0.19370568,898.68,898.17,0.70841256]
[1764759170068,0.19370568,898.68,898.18,0.70841256]
[1764759170367,0.19370568,898.68,898.14,1.022]
[1764759170566,0.19370568,898.68,898.15,0.70837761]
[1764759170769,0.19370568,898.68,898.16,0.70837761]
[1764759170965,0.19370568,898.68,898.17,0.70837761]
[1764759171170,0.19370568,898.68,898.18,0.70837761]
[1764759171469,0.19370568,898.68,898.14,1.022]
[1764759171666,0.19370568,898.68,898.15,0.70835886]
[1764759171869,0.19370568,898.68,898.16,0.70835886]
[1764759172066,0.19370568,898.68,898.17,0.70835886]
[1764759172269,0.19370568,898.68,898.18,0.70835886]
[1764759172570,0.19370568,898.68,898.14,1.022]
[1764759172770,0.19370568,898.68,898.15,0.70833919]
[1764759172965,0.19370568,898.68,898.16,0.70833925]
[1764759173167,0.19370568,898.68,898.17,0.70833925]
[1764759173371,0.19370568,898.68,898.18,0.70833925]
[1764759173572,0.19370568,898.68,898.14,1.022]
[1764759173768,0.19370568,898.68,898.15,0.70831831]
[1764759173972,0.19370568,898.68,898.16,0.70831831]
[1764759174172,0.19370568,898.68,898.17,0.70831831]
[1764759174468,0.19370568,898.68,898.18,0.70831831]
[1764759174672,0.19370568,898.68,898.19,0.70831831]
[1764759174871,0.19370568,898.68,898.2,0.70831831]
[1764759175171,0.19370568,898.68,898.21,0.70831831]
[1764759175370,0.19370568,898.68,898.14,1.022]
[1764759175669,0.19370568,898.68,898.15,0.70828668]
[1764759175868,0.19370568,898.68,898.16,0.70828668]
[1764759176067,0.19370568,898.68,898.17,0.70828668]
[1764759176267,0.19370568,898.68,898.18,0.70828668]
[1764759176471,0.19370568,898.68,898.19,0.70828668]
[1764759176672,0.19370568,898.68,898.14,1.022]
[1764759176871,0.19370568,898.68,898.15,0.70942352]
[1764759177171,0.19370568,898.68,898.14,1.022]
[1764759177369,0.19370568,898.68,898.15,0.70943404]
[1764759177569,0.19370568,898.68,898.14,1.022]
[1764759177870,0.19370568,898.68,898.15,0.70943404]
[1764759178172,0.19370568,898.68,898.14,1.022]
[1764759178373,0.19370568,898.68,898.15,0.70944865]
[1764759178575,0.19370568,898.68,898.14,1.022]
[1764759182574,1.65598922,898.58,898.14,1.022]
[1764759183279,1.65598922,898.6,898.14,1.022]
[1764759183977,1.65598922,898.6,898.12,1.135]
[1764759184275,1.65598922,898.61,897.61,0.83392369]
[1764759184572,1.65598922,898.61,897.62,0.70923411]
[1764759184777,1.65598922,898.61,897.63,0.70923411]
[1764759184974,1.65598922,898.61,897.64,0.70923411]
[1764759185173,1.65598922,898.61,897.65,0.70923411]
[1764759185373,1.65598922,898.62,897.66,0.70923411]
[1764759185579,1.65598922,898.62,897.67,0.70923411]
[1764759185777,1.65598922,898.62,897.6,0.83392369]
[1764759185778,1.65598922,898.62,897.68,0.70923411]
[1764759186075,1.65598922,898.63,897.69,0.70923411]
[1764759186272,1.65598922,898.63,897.68,0.832]
[1764759186273,1.65598922,898.63,897.7,0.70923411]
[1764759186478,1.65598922,898.63,897.71,0.70923411]
[1764759186676,1.65598922,898.63,897.68,0.832]
[1764759186677,0.19370568,898.68,897.72,0.70923411]
[1764759186878,0.19370568,898.68,897.69,0.83392369]
[1764759186879,0.19370568,898.68,897.73,0.70923411]
[1764759187078,0.19370568,898.68,897.74,0.70923411]
[1764759187280,0.19370568,898.68,897.75,0.70923411]
[1764759187477,0.19370568,898.68,897.76,0.70923411]
[1764759187681,0.19370568,898.68,897.77,0.70923411]
[1764759187877,0.19370568,898.68,897.78,0.70923411]
[1764759188177,0.19370568,898.68,897.79,1.85223411]
[1764759188382,0.19370568,898.68,897.8,0.70923411]
[1764759188582,0.19370568,898.68,897.81,0.70923411]
[1764759188881,0.19370568,898.68,897.82,0.70923411]
[1764759189083,0.19370568,898.68,897.83,0.70923411]
[1764759189378,0.19370568,898.68,897.84,0.70923411]
[1764759189577,0.19370568,898.68,897.85,0.70923411]
[1764759189783,0.19370568,898.68,897.86,0.70923411]
[1764759189979,0.19370568,898.68,897.87,0.70923411]
[1764759190282,0.19370568,898.68,897.88,0.70923411]
[1764759190479,0.19370568,898.68,897.89,0.70923411]
[1764759190683,0.19370568,898.68,897.9,0.70923411]
[1764759190884,0.19370568,898.68,897.91,0.70923411]
[1764759191083,0.19370568,898.68,897.92,0.70923411]
[1764759191280,0.19370568,898.68,897.93,0.70923411]
[1764759191484,0.19370568,898.68,897.94,0.70923411]
[1764759191681,0.19370568,898.68,897.95,0.70923411]
[1764759191886,0.19370568,898.68,897.96,0.70923411]
[1764759192186,0.19370568,898.68,897.97,0.70923411]
[1764759192382,0.19370568,898.68,897.79,1.143]
[1764759192581,0.19370568,898.68,897.8,0.70870373]
[1764759192782,0.19370568,898.68,897.81,0.70870373]
[1764759192986,0.19370568,898.68,897.82,0.70870373]
[1764759193190,0.19370568,898.68,897.83,0.70870373]
[1764759193489,0.19370568,898.68,897.84,0.70870373]
[1764759193686,0.19370568,898.68,897.85,0.70870373]
[1764759193890,0.19370568,898.68,897.86,0.70870373]
[1764759194090,0.19370568,898.68,897.87,0.70870373]
[1764759194290,0.19370568,898.68,897.88,0.70870373]
[1764759194590,0.19370568,898.68,897.89,0.70870373]
[1764759194790,0.19370568,898.68,897.9,0.70870373]
[1764759194992,0.19370568,898.68,897.91,0.70870373]
[1764759195292,0.19370568,898.68,897.92,0.70870373]
[1764759195490,0.19370568,898.68,897.93,0.70870373]
[1764759195687,0.19370568,898.68,897.94,0.70870373]
[1764759195989,0.19370568,898.68,897.95,0.70870373]
[1764759196188,0.19370568,898.68,897.79,1.143]
[1764759196389,0.19370568,898.68,897.8,0.70877061]
[1764759196591,0.19370568,898.68,897.81,0.70877061]
[1764759196888,0.19370568,898.68,897.82,0.70877061]
[1764759197092,0.19370568,898.68,897.83,0.70877061]
[1764759197391,0.19370568,898.68,897.84,0.70877061]
[1764759197591,0.19370568,898.68,897.85,0.70877061]
[1764759197792,0.19370568,898.68,897.86,0.70877061]
[1764759197989,0.19370568,898.68,897.87,0.70877061]
[1764759198187,0.19370568,898.68,897.88,0.70877061]
[1764759198388,0.19370568,898.68,897.89,0.70877061]
[1764759198589,0.19370568,898.68,897.9,0.70877061]
[1764759198793,0.19370568,898.68,897.91,0.70877061]
[1764759198991,0.19370568,898.68,897.92,0.70877061]
[1764759199190,0.19370568,898.68,897.93,0.70877061]
[1764759199490,0.19370568,898.68,897.79,1.143]
[1764759199689,0.19370568,898.68,897.8,0.70873834]
[1764759199886,0.19370568,898.68,897.81,0.70873834]
[1764759200191,0.19370568,898.68,897.82,0.70873834]
[1764759200486,0.19370568,898.68,897.83,0.70873834]
[1764759200691,0.19370568,898.68,897.84,0.70873834]
[1764759200990,0.19370568,898.68,897.85,0.70873834]
[1764759201189,1.8496949,898.68,897.86,0.70873834]
[1764759201389,1.8496949,898.68,897.87,0.70873834]
[1764759201592,1.8496949,898.68,897.88,0.70873834]
[1764759201791,1.8496949,898.68,897.89,0.70873834]
[1764759202089,1.8496949,898.68,897.9,0.70873834]
[1764759202289,1.8496949,898.68,897.79,1.143]
[1764759202492,1.8496949,898.68,897.8,0.70872168]
[1764759202692,1.8496949,898.68,897.81,0.70872168]
[1764759202888,1.8496949,898.68,897.82,0.70872168]
[1764759203092,1.8496949,898.68,897.83,0.70872168]
[1764759203293,1.8496949,898.68,897.84,0.70872168]
[1764759203589,1.8496949,898.68,897.85,0.70872168]
[1764759203789,1.8496949,898.68,897.86,0.70872168]
[1764759203991,1.8496949,898.68,897.87,0.70872168]
[1764759204193,1.8496949,898.68,897.88,0.70872168]
[1764759204493,1.8496949,898.68,897.89,0.70872168]
[1764759204691,1.8496949,898.68,897.9,0.70872168]
[1764759204890,1.8496949,898.68,897.91,0.70872168]
[1764759205094,1.8496949,898.68,897.79,1.143]
[1764759205289,1.8496949,898.68,897.8,0.70872102]
[1764759205491,1.8496949,898.68,897.81,0.70872102]
[1764759205691,1.8496949,898.68,897.82,0.70872102]
[1764759205894,1.8496949,898.68,897.83,0.70872102]
[1764759206093,1.65598922,898.41,897.79,1.143]
[1764759206293,1.65598922,898.34,897.79,1.143]
[1764759206791,1.65598922,898.35,897.79,1.143]
[1764759207493,1.65598922,898.39,897.79,1.143]
[1764759210000,1.65598922,898.42,897.79,1.143]
[1764759210199,1.65598922,898.46,897.79,1.143]
[1764759210400,1.65598922,898.46,897.68,0.832]
[1764759211401,1.65598922,898.48,897.68,0.832]
[1764759212604,1.65598922,898.51,897.68,0.832]
[1764759213303,1.65598922,898.52,897.68,0.832]
[1764759213505,1.65598922,898.61,897.69,0.859]
[1764759215201,1.65598922,898.62,897.69,0.859]
[1764759215404,1.65598922,898.63,897.69,0.859]
[1764759216703,1.65598922,898.61,897.69,0.859]
[1764759217506,1.65598922,898.52,897.69,0.859]
[1764759217708,1.65598922,898.43,897.69,0.859]
[1764759217909,1.65598922,898.38,897.69,0.859]
[1764759218106,1.65598922,898.4,897.69,0.859]
[1764759218307,1.65598922,898.34,897.69,0.859]
[1764759219407,1.65598922,898.37,897.69,0.859]
[1764759220105,1.65598922,898.36,897.69,0.859]
[1764759222507,1.65598922,898.38,897.69,0.859]
[1764759223407,1.65598922,898.4,897.69,0.859]
[1764759224413,1.65598922,898.41,897.69,0.859]
[1764759225413,1.65598922,898.42,897.69,0.859]
[1764759226610,1.65598922,898.36,897.69,0.859]
[1764759226814,1.65598922,898.23,897.69,0.859]
[1764759227411,1.65598922,898.24,897.69,0.859]
[1764759228310,1.65598922,898.26,897.69,0.859]
[1764759229216,1.65598922,898.26,897.7,1.266]
[1764759229217,0.19383623,898.12,897.7,1.266]
[1764759239825,0.19383623,898.12,897.71,0.972]
[1764759264149,0.19383623,898.12,897.72,0.956]
[1764759267655,1.65598922,898.67,897.73,0.70514244]
[1764759267856,0.19375313,898.19,897.74,0.70514244]
[1764759268056,1.65598922,898.68,897.75,0.70514244]
[1764759268255,1.65598922,898.68,897.76,0.70514244]
[1764759268551,1.65598922,898.68,897.77,0.70514244]
[1764759268752,1.65598922,898.68,897.78,0.70514244]
[1764759268951,1.65598922,898.68,897.79,0.70514244]
[1764759269153,1.65598922,898.68,897.8,0.70514244]
[1764759269351,1.65598922,898.68,897.81,0.70514244]
[1764759269557,1.65598922,898.68,897.82,0.70514244]
[1764759269856,0.19373479,898.47,897.83,0.70514244]
[1764759270152,0.19373479,898.47,897.84,0.70514244]
[1764759270356,0.19373479,898.47,897.85,0.70514244]
[1764759270655,0.19373479,898.47,897.86,0.70514244]
[1764759270851,0.19373479,898.47,897.87,0.70514244]
[1764759271156,0.19373479,898.47,897.88,0.70514244]
[1764759271451,0.19373479,898.47,897.89,0.70514244]
[1764759271654,0.19373479,898.47,897.9,0.70514244]
[1764759271857,0.19373479,898.47,897.91,0.70514244]
[1764759272152,0.19373479,898.47,897.72,0.956]
[1764759272357,0.19373479,898.47,897.73,0.70531283]
[1764759272557,0.19373479,898.47,897.74,0.70531283]
[1764759272756,0.19373479,898.47,897.75,0.70531283]
[1764759272951,0.19373479,898.47,897.76,0.70531283]
[1764759273154,0.19373479,898.47,897.77,0.70531283]
[1764759273453,0.19373479,898.47,897.78,0.70531283]
[1764759273657,0.19373479,898.47,897.79,0.70531283]
[1764759273958,0.19373479,898.47,897.8,0.70531283]
[1764759274158,0.19373479,898.47,897.81,0.70531283]
[1764759274457,0.19373479,898.47,897.82,0.70531283]
[1764759274654,0.19373479,898.47,897.83,0.70531283]
[1764759274857,0.19373479,898.47,897.84,0.70531283]
[1764759275054,0.19373479,898.47,897.85,0.70531283]
[1764759275358,0.19373479,898.47,897.86,0.70531283]
[1764759275557,0.19373479,898.47,897.87,0.70531283]
[1764759275754,0.19373479,898.47,897.88,0.70531283]
[1764759276054,0.19373479,898.47,897.89,0.70531283]
[1764759276254,0.19373479,898.47,897.9,0.70531283]
[1764759276558,0.19373479,898.47,897.91,0.70531283]
[1764759276855,0.19373479,898.47,897.92,0.70531283]
[1764759277058,0.19373479,898.47,897.93,0.70531283]
[1764759277353,0.19373479,898.47,897.72,0.956]
[1764759277558,0.19373479,898.47,897.73,0.70636828]
[1764759277757,0.19373479,898.47,897.74,0.70636828]
[1764759277956,0.19373479,898.47,897.72,0.956]
[1764759277957,0.19373479,898.47,897.75,0.70636828]
[1764759278158,0.19373479,898.47,897.72,0.956]
[1764759278159,0.19373479,898.47,897.76,0.70636828]
[1764759278359,0.19373479,898.47,897.77,0.70636828]
[1764759278559,0.19373479,898.47,897.78,0.70636828]
[1764759278859,0.19373479,898.47,897.79,0.70636828]
[1764759279059,0.19373479,898.47,897.8,0.70636828]
[1764759279259,0.19373479,898.47,897.81,0.70636828]
[1764759279459,0.19373479,898.47,897.82,0.70636828]
[1764759279656,0.19373479,898.47,897.83,0.70636828]
[1764759279859,0.19373479,898.47,897.84,0.70636828]
[1764759280059,0.19373479,898.47,897.85,0.70636828]
[1764759280257,0.19373479,898.47,897.86,0.70636828]
[1764759280460,0.19373479,898.47,897.87,0.70636828]
[1764759280660,0.19373479,898.47,897.72,0.956]
[1764759280861,0.19373479,898.47,897.73,0.70658302]
[1764759281160,0.19373479,898.47,897.72,0.956]
[1764759281161,0.19373479,898.47,897.74,0.70658302]
[1764759281460,0.19373479,898.47,897.75,0.70658302]
[1764759281660,0.19373479,898.47,897.76,0.70658302]
[1764759281860,0.19373479,898.47,897.77,0.70658302]
[1764759282059,0.19373479,898.47,897.72,0.956]
[1764759282256,0.19373479,898.47,897.73,0.70480432]
[1764759282560,0.19373479,898.47,897.74,0.70480432]
[1764759282760,0.19373479,898.47,897.75,0.70480432]
[1764759282960,0.19373479,898.47,897.72,0.956]
[1764759283157,0.19373479,898.47,897.73,0.70469906]
[1764759283357,0.19373479,898.47,897.72,0.956]
[1764759293166,0.19373479,898.47,897.71,0.972]
[1764759295971,0.19373479,898.47,897.72,0.70413098]
[1764759296167,0.19373479,898.47,897.72,0.957]
[1764759296768,0.19373479,898.47,897.73,0.71951858]
[1764759296972,0.19373479,898.47,897.74,0.71951858]
[1764759297170,0.19373479,898.47,897.72,0.957]
[1764759297370,0.19373479,898.47,897.73,0.71951858]
[1764759297571,0.19373479,898.47,897.74,0.71951858]
[1764759297873,0.19373479,898.47,897.72,0.957]
[1764759298074,0.19373479,898.47,897.73,0.71960425]
[1764759298274,0.19373479,898.47,897.74,0.71960425]
[1764759298474,0.19373479,898.47,897.75,0.71960425]
[1764759298673,0.19373479,898.47,897.72,0.957]
[1764759298872,0.19373479,898.47,897.73,0.72047473]
[1764759299175,0.19373479,898.47,897.74,0.72047473]
[1764759299475,0.19373479,898.47,897.75,0.72047473]
[1764759299675,0.19373479,898.47,897.76,0.72047473]
[1764759299976,0.19373479,898.47,897.77,0.72047473]
[1764759300274,0.19373479,898.47,897.78,0.72047473]
[1764759300471,0.19373479,898.47,897.79,0.72047473]
[1764759300672,0.19373479,898.47,897.8,0.72047473]
[1764759300878,0.19373479,898.47,897.81,0.72047473]
[1764759301177,0.19373479,898.47,897.82,0.72047473]
[1764759301376,0.19373479,898.47,897.83,0.72047473]
[1764759301576,0.19373479,898.47,897.84,0.72047473]
[1764759301876,0.19373479,898.47,897.85,0.72047473]
[1764759302076,0.19373479,898.47,897.86,0.72047473]
[1764759302272,0.19373479,898.47,897.87,0.72047473]
[1764759302472,0.19373479,898.47,897.88,0.72047473]
[1764759302676,0.19373479,898.47,897.89,0.72047473]
[1764759302871,0.19373479,898.47,897.9,0.72047473]
[1764759303076,0.19373479,898.47,897.91,0.72047473]
[1764759303277,0.19373479,898.47,897.92,0.72047473]
[1764759303474,0.19373479,898.47,897.93,0.72047473]
[1764759303774,0.19373479,898.47,897.84,0.849]
[1764759303775,0.19373479,898.47,897.94,0.72047473]
[1764759303980,0.19373479,898.47,897.84,0.849]
[1764759304181,0.19373479,898.47,897.85,0.72270209]
[1764759304374,0.19373479,898.47,897.86,0.72270209]
[1764759304579,0.19373479,898.47,897.87,0.72270209]
[1764759304777,0.19373479,898.47,897.88,0.72270209]
[1764759304979,0.19373479,898.47,897.89,0.72270209]
[1764759305275,0.19373479,898.47,897.9,0.72270209]
[1764759305477,0.19373479,898.47,897.91,0.72270209]
[1764759305677,0.19373479,898.47,897.92,0.72270209]
[1764759305880,0.19373479,898.47,897.93,0.72270209]
[1764759306176,0.19373479,898.47,897.94,0.7227065]
[1764759306381,0.19373479,898.47,897.84,0.849]
[1764759306579,0.19373479,898.47,897.85,0.7227087]
[1764759306777,0.19373479,898.47,897.86,0.7227087]
[1764759306976,0.19373479,898.47,897.84,0.849]
[1764759306977,0.19373479,898.47,897.87,0.7227087]
[1764759307180,0.19373479,898.47,897.88,0.7227087]
[1764759307475,0.19373479,898.47,897.89,0.7227087]
[1764759307677,0.19373479,898.47,897.9,0.7227087]
[1764759307877,0.19373479,898.47,897.91,0.7227087]
[1764759308078,0.19373479,898.47,897.84,0.849]
[1764759308377,0.19373479,898.47,897.85,0.72271282]
[1764759308679,0.19373479,898.47,897.86,0.72271282]
[1764759308878,0.19373479,898.47,897.87,0.72271282]
[1764759309083,0.19373479,898.47,897.88,0.72271282]
[1764759309281,0.19373479,898.47,897.89,0.72271282]
[1764759309480,0.19373479,898.47,897.9,0.72271282]
[1764759309681,0.19373479,898.47,897.91,0.72271282]
[1764759309982,0.19373479,898.47,897.84,0.849]
[1764759310183,0.19373479,898.47,897.85,0.72271499]
[1764759310483,0.19373479,898.47,897.86,0.72271499]
[1764759310684,0.19373479,898.47,897.87,0.72271499]
[1764759310881,0.19373479,898.47,897.88,0.72271499]
[1764759311080,0.19373479,898.47,897.89,0.72271499]
[1764759311280,0.19373479,898.47,897.9,0.72271499]
[1764759311484,0.19373479,898.47,897.91,0.72271499]
[1764759311682,0.19373479,898.47,897.92,0.72271499]
[1764759311882,0.19373479,898.47,897.84,0.849]
[1764759312082,0.19373479,898.47,897.85,0.722711]
[1764759312285,0.19373479,898.47,897.86,0.722711]
[1764759312479,0.19373479,898.47,897.84,0.849]
[1764759312480,0.19373479,898.47,897.87,0.722711]
[1764759312782,0.19373479,898.47,897.84,0.849]
[1764759312783,0.19373479,898.47,897.88,0.722711]
[1764759312984,0.19373479,898.47,897.89,0.722711]
[1764759313185,0.19373479,898.47,897.9,0.722711]
[1764759313384,0.19373479,898.47,897.91,0.722711]
[1764759313582,0.19373479,898.47,897.92,0.722711]
[1764759313884,0.19373479,898.47,897.84,0.849]
[1764759314082,0.19373479,898.47,897.85,0.72269004]
[1764759314280,0.19373479,898.47,897.86,0.72269004]
[1764759314485,0.19373479,898.47,897.87,0.72269004]
[1764759314786,0.19373479,898.47,897.88,0.72269004]
[1764759314985,0.19373479,898.47,897.89,0.72269004]
[1764759315182,0.19373479,898.47,897.9,0.72269004]
[1764759315489,0.19373479,898.47,897.91,0.72269004]
[1764759315683,0.19373479,898.47,897.84,0.849]
[1764759315986,0.19373479,898.47,897.85,0.72268462]
[1764759316286,0.19373479,898.47,897.84,0.849]
[1764759316483,0.19373479,898.47,897.85,0.72271619]
[1764759316681,0.19373479,898.47,897.84,0.849]
[1764759332103,0.19373479,898.47,897.72,0.957]
[1764759332300,0.19373479,898.47,897.73,0.72146108]
[1764759332499,0.19373479,898.47,897.74,0.72146108]
[1764759332698,0.19373479,898.47,897.72,0.957]
[1764759332901,0.19373479,898.47,897.73,0.7213954]
[1764759333199,0.19373479,898.47,897.72,0.957]
[1764759333399,0.19373479,898.47,897.73,0.7213393]
[1764759333602,0.19373479,898.47,897.72,0.957]
[1764759333898,0.19373479,898.47,897.73,0.72133984]
[1764759334101,0.19373479,898.47,897.72,0.957]
[1764759334300,0.19373479,898.47,897.73,0.72129106]
[1764759334500,0.19373479,898.47,897.72,0.957]
[1764759334704,0.19373479,898.47,897.73,0.72129106]
[1764759334903,0.19373479,898.47,897.72,0.957]
[1764759335105,0.19373479,898.47,897.73,0.72129106]
[1764759335302,0.19373479,898.47,897.72,0.957]
[1764759335500,0.19373479,898.47,897.73,0.721291]
[1764759335703,0.19373479,898.47,897.74,1.209]
[1764759341606,0.19373479,898.47,897.75,1.032]
[1764759349208,0.19373479,898.47,897.76,1.246]
[1764759366724,0.19373479,898.47,897.77,1.173]
[1764759386850,0.19373479,898.47,897.76,1.246]
[1764759388552,0.19373479,898.47,897.77,1.173]
[1764759400160,0.19373479,898.47,897.78,0.924]
[1764759413470,0.19373479,898.47,897.79,1.129]
[1764759417073,1.66215329,897.9,897.79,1.129]
[1764759417271,1.66215329,897.91,897.79,1.129]
[1764759421074,1.66215329,897.92,897.79,1.129]
[1764759421272,1.66215329,897.93,897.79,1.129]
[1764759422177,1.66215329,898.01,897.79,1.129]
[1764759422671,0.19373479,898.47,897.79,1.129]
[1764759422672,1.66215329,898.08,897.79,1.129]
[1764759423178,1.66215329,898.07,897.79,1.129]
[1764759425878,1.66215329,898.08,897.79,1.129]
[1764759426274,1.66215329,898.07,897.79,1.129]
[1764759426878,1.66215329,898.12,897.79,1.129]
[1764759427374,1.66215329,898.22,897.79,1.129]
[1764759429280,1.66215329,898.21,897.79,1.129]
[1764759429578,1.66215329,898.22,897.79,1.129]
[1764759429779,1.66215329,898.21,897.79,1.129]
[1764759433782,1.66215329,898.19,897.79,1.129]
[1764759436783,1.66215329,898.22,897.79,1.129]
[1764759437781,1.66215329,898.23,897.79,1.129]
[1764759437980,1.85588808,898.47,897.79,1.129]
[1764759438382,1.85588808,898.47,897.78,0.924]
[1764759439382,0.19373479,898.47,897.78,0.924]
[1764759440482,0.19373479,898.47,897.79,1.308]
[1764759442183,1.85588808,898.47,897.79,1.308]
[1764759444982,0.19373479,898.47,897.79,1.308]
[1764759446683,1.85588808,898.47,897.79,1.308]
[1764759448288,0.19373479,898.47,897.79,1.308]
[1764759449791,1.85588808,898.47,897.79,1.308]
[1764759450285,1.85588808,898.47,897.8,1.193]
[1764759451491,1.66215329,898.46,897.8,1.193]
[1764759452294,0.19373479,898.47,897.8,1.193]
[1764759455197,1.66215329,898.45,897.8,1.193]
[1764759455500,1.66215329,898.43,897.8,1.193]
[1764759456098,1.66215329,898.41,897.8,1.193]
[1764759456297,1.66215329,898.35,897.8,1.193]
[1764759457001,1.66215329,898.3,897.8,1.193]
[1764759457498,1.66215329,898.29,897.8,1.193]
[1764759458103,1.66215329,898.3,897.8,1.193]
[1764759458301,1.66215329,898.29,897.8,1.193]
[1764759459204,1.66215329,898.3,897.8,1.193]
[1764759460304,1.66215329,898.29,897.81,1.123]
[1764759461804,1.66215329,898.26,897.81,1.123]